[Event "1st Bangalore GM-Open-A 2024"]
[Site "Bangalore"]
[Date "2024.01.24"]
[Round "8.39"]
[White "Nguyen Thanh Thuy Tien"]
[Black "Saptarshi, Roy"]
[Result "1-0"]
[ECO "B01"]
[WhiteElo "2118"]
[BlackElo "2322"]
[Annotator "RC"]
[PlyCount "49"]
[EventDate "2024.01.20"]
[EventType "swiss"]
[EventCountry "IND"]
[SourceTitle "playchess.com"]
[Source "ChessBase"]
[SourceQuality "1"]
[TimeControl "5400+30"]

1. e4 {[%emt 0:00:07]} d5 {[%emt 0:00:13]} 2. exd5 {[%emt 0:00:09]} Qxd5 {[%emt 0:00:06]} 3. Nc3 {[%emt 0:00:11]} Qa5 {[%emt 0:00:06]} 4. d4 {[%emt 0:00:08]} Nf6 {[%emt 0:00:05]} 5. Nf3 {[%emt 0:00:08]} c6 {[%emt 0:00:07]} 6. Bc4 {[%emt 0:01:36]} Bf5 {[%emt 0:00:07]} 7. Bd2 {[%emt 0:00:11]} Qc7 {[%emt 0:00:23]} 8. Ne5 {[%emt 0:03:19]} e6 {[%emt 0:00:19]} 9. g4 {[%emt 0:04:20]} Bg6 {[%emt 0:02:15]} 10. Qe2 {[%emt 0:06:10]} Nbd7 {[%emt 0:01:18]} 11. h4 {[%emt 0:08:36]} b5 {[%emt 0:09:41]} 12. h5 {[%emt 0:36:40]} Bxh5 {[%emt 0:35:14]} 13. Nxb5 {[%emt 0:08:08]} cxb5 {[%emt 0:03:42]} 14. Bxb5 {[%emt 0:00:07]} Bxg4 {[%emt 0:04:02]} 15. Nxg4 {[%emt 0:00:20]} Nxg4 {[%emt 0:03:35]} 16. Qxg4 {[%emt 0:00:06]} Rb8 {[%emt 0:02:16]} 17. c4 {[%emt 0:04:24]} g6 {[%emt 0:00:53]} 18. d5 {[%emt 0:08:39]} e5 {[%emt 0:07:36]} 19. Bc3 {[%emt 0:03:59]} Bg7 {[%emt 0:01:47]} 20. O-O-O {[%emt 0:06:22]} f5 {[%emt 0:02:20]} 21. d6 {[%emt 0:00:30]} Qb7 {[%emt 0:00:56]} 22. Qh4 {[%emt 0:00:17]} g5 {[%emt 0:13:48]} 23. Qh5+ {[%emt 0:02:57]} Kf8 {[%emt 0:08:36]} 24. Qxg5 {[%emt 0:00:08]} Nc5 {[%emt 0:00:04]} 25. d7 {[%emt 0:01:37]} 1-0

[Event "1st Bangalore GM-Open-A 2024"]
[Site "Bangalore"]
[Date "2024.01.24"]
[Round "8.40"]
[White "Daakshin Arun"]
[Black "Lasya.g"]
[Result "0-1"]
[ECO "D35"]
[WhiteElo "2309"]
[BlackElo "1945"]
[Annotator "RC"]
[PlyCount "72"]
[EventDate "2024.01.20"]
[EventType "swiss"]
[EventCountry "IND"]
[SourceTitle "playchess.com"]
[Source "ChessBase"]
[SourceQuality "1"]
[TimeControl "5400+30"]

1. d4 {[%emt 0:00:03]} d5 {[%emt 0:00:13]} 2. c4 {[%emt 0:00:15]} e6 {[%emt 0:00:05]} 3. Nc3 {[%emt 0:00:11]} Be7 {[%emt 0:00:21]} 4. Bf4 {[%emt 0:01:09]} Nf6 {[%emt 0:00:34]} 5. e3 {[%emt 0:00:06]} b6 {[%emt 0:03:58]} 6. a3 {[%emt 0:01:30]} c5 {[%emt 0:00:55]} 7. dxc5 {[%emt 0:08:55]} bxc5 {[%emt 0:01:33]} 8. cxd5 {[%emt 0:01:39]} Nxd5 {[%emt 0:08:58]} 9. Bb5+ {[%emt 0:08:10]} Bd7 {[%emt 0:03:29]} 10. Nxd5 {[%emt 0:02:09]} exd5 {[%emt 0:00:07]} 11. Bxd7+ {[%emt 0:03:08]} Qxd7 {[%emt 0:01:44]} 12. Nf3 {[%emt 0:00:17]} Nc6 {[%emt 0:07:30]} 13. O-O {[%emt 0:04:21]} O-O {[%emt 0:01:31]} 14. Qc2 {[%emt 0:07:44]} Qe6 {[%emt 0:05:48]} 15. Rac1 {[%emt 0:11:03]} Rac8 {[%emt 0:05:09]} 16. Rfd1 {[%emt 0:03:56]} h6 {[%emt 0:01:57]} 17. h3 {[%emt 0:02:33]} Na5 {[%emt 0:09:19]} 18. Be5 {[%emt 0:11:53]} Nc4 {[%emt 0:00:33]} 19. Bc3 {[%emt 0:01:06]} Rfd8 {[%emt 0:09:10]} 20. Rd3 {[%emt 0:05:07]} Nd6 {[%emt 0:12:33]} 21. Ba5 {[%emt 0:03:44]} Rd7 {[%emt 0:00:45]} 22. Qa4 {[%emt 0:05:47]} Rb7 {[%emt 0:03:04]} 23. Rcd1 {[%emt 0:03:43]} Nc4 {[%emt 0:02:10]} 24. Bc3 {[%emt 0:00:18]} Nb6 {[%emt 0:09:50]} 25. Qf4 {[%emt 0:02:24]} Bd6 {[%emt 0:02:09]} 26. Qh4 {[%emt 0:00:56]} Be7 {[%emt 0:00:36]} 27. Qf4 {[%emt 0:02:59]} Bd6 {[%emt 0:00:23]} 28. Qh4 {[%emt 0:00:30]} Be7 {[%emt 0:00:11]} 29. Qg3 {[%emt 0:01:30]} Bf6 {[%emt 0:00:18]} 30. Ne5 {[%emt 0:02:29]} Na4 {[%emt 0:01:24]} 31. Rxd5 {[%emt 0:01:05]} Nxc3 {[%emt 0:01:53]} 32. bxc3 {[%emt 0:00:12]} Bxe5 {[%emt 0:02:29]} 33. Rxe5 {[%emt 0:00:35]} Qb3 {[%emt 0:01:03]} 34. Qg4 {[%emt 0:01:00]} Rbc7 {[%emt 0:02:57]} 35. Rd7 {[%emt 0:03:47]} Qxc3 {[%emt 0:01:18]} 36. Rxc7 {[%emt 0:00:11]} Qa1+ {[%emt 0:00:15]} 0-1

[Event "1st Bangalore GM-Open-A 2024"]
[Site "Bangalore"]
[Date "2024.01.25"]
[Round "9.1"]
[White "Short, Nigel D"]
[Black "Sethuraman, S.P."]
[Result "1/2-1/2"]
[ECO "C77"]
[WhiteElo "2592"]
[BlackElo "2594"]
[Annotator "RC"]
[PlyCount "65"]
[EventDate "2024.01.20"]
[EventType "swiss"]
[EventCountry "IND"]
[SourceTitle "playchess.com"]
[Source "ChessBase"]
[SourceQuality "1"]
[TimeControl "5400+30"]

1. e4 {[%emt 0:00:09]} e5 {[%emt 0:00:25]} 2. Nf3 {[%emt 0:00:18]} Nc6 {[%emt 0:00:06]} 3. Bb5 {[%emt 0:00:11]} a6 {[%emt 0:00:05]} 4. Ba4 {[%emt 0:00:06]} Nf6 {[%emt 0:00:04]} 5. Qe2 {[%emt 0:00:49]} b5 {[%emt 0:00:05]} 6. Bb3 {[%emt 0:00:05]} Bc5 {[%emt 0:00:04]} 7. c3 {[%emt 0:02:00]} O-O {[%emt 0:00:53]} 8. d3 {[%emt 0:00:53]} h6 {[%emt 0:03:59]} 9. h3 {[%emt 0:01:06]} d5 {[%emt 0:02:05]} 10. g4 {[%emt 0:00:23]} Be6 {[%emt 0:04:16]} 11. g5 {[%emt 0:03:32]} dxe4 {[%emt 0:03:43]} 12. dxe4 {[%emt 0:01:58]} Bxb3 {[%emt 0:02:14]} 13. axb3 {[%emt 0:00:11]} hxg5 {[%emt 0:00:03]} 14. Bxg5 {[%emt 0:02:00]} Be7 {[%emt 0:17:12]} 15. Nbd2 {[%emt 0:08:46]} Nh5 {[%emt 0:12:08]} 16. Be3 {[%emt 0:02:26]} Qd6 {[%emt 0:07:59]} 17. Rg1 {[%emt 0:09:38]} Rfd8 {[%emt 0:01:24]} 18. Nh4 {[%emt 0:01:59]} Bxh4 {[%emt 0:01:43]} 19. Qxh5 {[%emt 0:00:10]} Bf6 {[%emt 0:00:21]} 20. h4 {[%emt 0:14:06]} b4 {[%emt 0:02:48]} 21. Qg4 {[%emt 0:02:58]} Qd7 {[%emt 0:15:07]} 22. h5 {[%emt 0:01:16]} Qxg4 {[%emt 0:01:48]} 23. Rxg4 {[%emt 0:00:07]} a5 {[%emt 0:00:02]} 24. Kd1 {[%emt 0:28:32]} a4 {[%emt 0:02:35]} 25. bxa4 {[%emt 0:03:30]} bxc3 {[%emt 0:00:06]} 26. bxc3 {[%emt 0:00:06]} Ra6 {[%emt 0:02:10]} 27. Ke2 {[%emt 0:01:39]} Rda8 {[%emt 0:02:32]} 28. Rag1 {[%emt 0:01:42]} Kh7 {[%emt 0:03:27]} 29. Bg5 {[%emt 0:00:56]} Bxg5 {[%emt 0:00:30]} 30. Rxg5 {[%emt 0:00:06]} Rg8 {[%emt 0:00:06]} 31. Rf5 {[%emt 0:06:17]} f6 {[%emt 0:01:11]} 32. Rf3 {[%emt 0:00:09]} Nd8 {[%emt 0:03:35]} 33. Ra1 {[%emt 0:01:55]} 1/2-1/2

[Event "1st Bangalore GM-Open-A 2024"]
[Site "Bangalore"]
[Date "2024.01.25"]
[Round "9.2"]
[White "Gupta, Abhijeet"]
[Black "Srihari L R"]
[Result "0-1"]
[ECO "A09"]
[WhiteElo "2605"]
[BlackElo "2469"]
[Annotator "TA"]
[PlyCount "60"]
[EventDate "2024.01.20"]
[EventType "swiss"]
[EventCountry "IND"]
[SourceTitle "playchess.com"]
[Source "ChessBase"]
[SourceQuality "1"]
[TimeControl "5400+30"]

{[%evp 10,60,13,14,22,0,18,12,18,15,30,11,17,29,41,13,50,50,37,41,108,95,120,112,112,90,94,95,107,0,0,0,0,0,0,0,0,-113,-118,-310,-300,-300,-302,-312,-295,-456,-466,-446,-444,-1056,-1045,-1026,-987]} 1. Nf3 {[%emt 0:00:16]} d5 {[%emt 0:03:05]} 2. c4 {[%emt 0:00:09]} d4 {[%emt 0:03:09]} 3. b4 {[%emt 0:00:24]} c5 {[%emt 0:08:29]} 4. e3 {[%emt 0:00:20]} dxe3 {[%emt 0:03:04]} 5. fxe3 {[%emt 0:00:22]} cxb4 {[%emt 0:00:04]} 6. d4 {[%emt 0:00:06]} Nf6 {[%emt 0:01:13]} 7. Bd3 {[%emt 0:01:14][%mdl 1024] Repels Bf5. White has compensation.} e6 {[%emt 0:01:46][%cal Be7e6,Be6e5,Be5d4][%mdl 32] EV=20.14. Goes to d4 (dbg))} 8. O-O {[%emt 0:01:04] OK} Nc6 {[%emt 0:00:36] OK. The position is equal.} 9. Bb2 {[%emt 0:02:30]} Be7 {[%emt 0:04:33] OK} 10. e4 {[%emt 0:04:18] OK} Ng4 {[%emt 0:04:12]} 11. Qe2 {[%emt 0:02:33] Wards off Ne3. OK} e5 {[%emt 0:00:41][%cal Rc6d4]} 12. h3 {[%emt 0:02:15] Inaccurate} (12. Nxe5 $2 Nxd4 13. Qe1 Nxe5 $19) 12... h5 {[%emt 0:00:16] Inaccurate} 13. d5 {[%emt 0:01:33] OK} (13. hxg4 hxg4 14. Nxe5 Nxe5 $19 (14... Nxd4 15. Qf2 $16)) 13... Bc5+ {[%emt 0:00:42] OK} 14. Kh1 {[%emt 0:00:05][%cal Ob1d2] Nbd2! would now be deadly. Best (Easy)} Nd4 {[%emt 0:28:16] Mistake (0.7)} (14... Ne7 $1 $14) 15. Bxd4 {[%emt 0:00:16]} Bxd4 {[%emt 0:00:08]} 16. Nxd4 {[%emt 0:03:48]} exd4 {[%emt 0:00:02]} 17. e5 {[%emt 0:07:09][%cal Ob1d2] OK} (17. hxg4 hxg4+ 18. Kg1 Rh1+ 19. Kf2 (19. Kxh1 $2 Qh4+ 20. Kg1 g3 $19) 19... Qh4+ 20. g3 Rh2+ 21. Ke1 Rxe2+ $19) 17... Qh4 {[%emt 0:04:58][%cal Oh4g3] OK} 18. Nd2 {[%emt 0:01:56] And now e6 would win. OK} Ne3 {[%emt 0:00:47][%cal Oe8g8] [#] Best} 19. Ne4 {[%emt 0:16:09] Mistake (1.1)} O-O $11 {[%emt 0:03:03] OK} 20. e6 {[%emt 0:38:03] Black must now prevent exf7+. OK} Nxf1 {[%emt 0:05:02] Best (Easy)} 21. Rxf1 {[%emt 0:00:24] Hoping for Nd6.} fxe6 {[%emt 0:00:25] Best (Easy)} 22. Rxf8+ {[%emt 0:01:17] OK} Kxf8 {[%emt 0:00:13]} 23. Nd6 {[%emt 0:06:31] Mistake (1.1)} (23. Qf3+ $1 $11 {was the only way to keep the balance.} Ke7 (23... Kg8 24. Nd6 $11) 24. d6+ Ke8 25. Nf2) 23... Bd7 $17 {[%emt 0:14:23] [#] aiming for ...exd5. Best (Easy)} 24. dxe6 {[%emt 0:01:55] Loses the game. Loses game (1.9)} (24. Qf3+ $17 {only move.} Ke7 (24... Qf6 25. Qxh5 exd5 26. Qh8+ Ke7 27. Qxa8 $17) 25. Nxb7 exd5 (25... Qe1+ 26. Kh2 $15) 26. cxd5 Qe1+ 27. Kh2 Qe5+ 28. Kh1) 24... Bc6 $19 {[%emt 0:01:34] Best (Easy)} 25. Kg1 {[%emt 0:00:30] OK} Qg5 {[%emt 0:01:23] Strongly threatening ...Qc1+. OK} 26. Nf5 {[%emt 0:01:59] OK} Re8 {[%emt 0:01:33][%cal Oe8e6] Threatens to win with ...Rxe6! OK} (26... Qc1+ 27. Kh2 Qg5 (27... Qf4+ 28. g3 $17) 28. e7+ (28. Nxd4 $2 {too greedy.} Qf4+ 29. Kh1 Qxd4 $19) 28... Ke8 29. Nd6+ (29. Nxd4 $2 {is the wrong capture.} Qf6 $19) 29... Kd7 30. e8=Q+ (30. e8=B+ $2 {loses.} Kxd6 31. Bxc6 bxc6 $19) (30. e8=R $2 {perishes.} Rxe8 31. Nxe8 Kd8 $19) 30... Rxe8 31. Nxe8 $19) 27. h4 {[%emt 0:01:54] Mistake (1.6)} (27. e7+ {is a better defense.} Rxe7 28. Nxe7 Qxe7 29. Qf2+ Qf6 30. Qg3) 27... Qc1+ {[%emt 0:03:14] OK. Black is clearly winning.} 28. Kh2 {[%emt 0:01:05] OK} Qf4+ {[%emt 0:00:02] Best (Easy)} 29. Kg1 {[%emt 0:01:19] Mistake (6.1)} (29. g3 $142 Qf3 30. Qxf3 (30. e7+ $2 Kg8 $19) 30... Bxf3 31. e7+ Kg8 32. c5) 29... g6 {[%emt 0:02:43] Best} 30. Nd6 {[%emt 0:02:38] OK} Qxd6 {[%emt 0:00:00] Weighted Error Value: White=0.47/Black=0.08 (flawless) .  Loses game:     	White=1     	---        Mistake:       	White=4     	Black=1      Inaccurate:     	White=1     	Black=1      OK:         	White=12    	Black=8      Best:        	White=1     	Black=7} 0-1

[Event "1st Bangalore GM-Open-A 2024"]
[Site "Bangalore"]
[Date "2024.01.25"]
[Round "9.3"]
[White "Aronyak Ghosh"]
[Black "Mitrabha, Guha"]
[Result "1/2-1/2"]
[ECO "A46"]
[WhiteElo "2541"]
[BlackElo "2504"]
[Annotator "TA"]
[PlyCount "89"]
[EventDate "2024.01.20"]
[EventType "swiss"]
[EventCountry "IND"]
[SourceTitle "playchess.com"]
[Source "ChessBase"]
[SourceQuality "1"]
[TimeControl "5400+30"]

{[%evp 20,89,0,0,0,0,17,12,20,6,31,16,26,25,92,19,43,31,73,16,19,6,147,147,158,65,76,83,77,67,77,71,81,66,83,85,102,89,89,96,104,102,105,101,99,90,156,169,193,96,112,112,184,184,161,4,0,0,181,54,60,60,40,59,47,45,50,56,50,8,14,0]} 1. d4 {[%emt 0:00:12]} Nf6 {[%emt 0:02:30]} 2. Nf3 {[%emt 0:00:31]} e6 {[%emt 0:00:09]} 3. Bf4 {[%emt 0:00:51]} h6 {[%emt 0:00:30]} 4. h4 $146 {[%emt 0:08:13]} ({Predecessor:} 4. Nbd2 Nh5 5. Bg3 Nxg3 6. hxg3 d5 7. e4 Be7 8. Bd3 Nd7 9. Qe2 c5 10. exd5 exd5 11. dxc5 Nxc5 {½-½ Firouzja,A (2763)-Caruana,F (2794) CCT Final playoff rapid 2023 (2.3)}) 4... b6 {[%emt 0:06:55]} 5. e3 {[%emt 0:00:54]} Bb7 {[%emt 0:00:07]} 6. Bd3 {[%emt 0:00:10] A46: Damenbauernspiele.} Bd6 {[%emt 0:01:02]} 7. Ne5 {[%emt 0:09:18]} Be7 {[%emt 0:15:51]} 8. Nd2 {[%emt 0:02:53]} d6 {[%emt 0:09:44]} 9. Nef3 {[%emt 0:01:08]} c5 {[%emt 0:02:24]} 10. c3 {[%emt 0:02:33]} Nc6 {[%emt 0:01:50]} 11. Qe2 {[%emt 0:06:39]} O-O {[%emt 0:02:21]} 12. a3 {[%emt 0:13:23]} Re8 {[%emt 0:04:19]} 13. Rd1 {[%emt 0:03:06]} Bf8 {[%emt 0:03:34]} 14. Bh2 {[%emt 0:03:47]} d5 {[%emt 0:04:44]} 15. Ne5 {[%emt 0:07:13]} Nd7 {[%emt 0:03:26]} 16. Ndf3 {[%emt 0:01:24]} Be7 {[%emt 0:06:09]} (16... Ncxe5 $11 17. Nxe5 c4) 17. Bg3 {[%emt 0:06:42]} (17. Nxd7 $1 $16 Qxd7 18. g4) 17... Nf8 {[%emt 0:09:39]} 18. O-O {[%emt 0:04:52]} (18. Nxc6 $5 Bxc6 19. Bc2 $14) 18... Nd7 {[%emt 0:01:52]} 19. Bc2 {[%emt 0:09:43]} (19. Nxd7 $16 Qxd7 20. dxc5) 19... a5 $11 {[%emt 0:03:01]} 20. Rfe1 {[%emt 0:01:30]} Qc8 {[%emt 0:01:19]} (20... Ncxe5 $11 {bleibt in der Remisbreite.} 21. dxe5 Ba6) 21. Nxd7 $16 {[%emt 0:05:34]} Qxd7 {[%emt 0:00:06]} 22. e4 {[%emt 0:00:14]} (22. Qd3 $16 {Beabsichtigt Qh7+ und Matt.} f5 23. c4) 22... Ba6 $14 {[%emt 0:00:41]} 23. Qd2 {[%emt 0:01:44]} cxd4 {[%emt 0:02:59]} 24. Nxd4 {[%emt 0:00:54]} Nxd4 {[%emt 0:02:40]} 25. Qxd4 {[%emt 0:00:07]} Bc5 {[%emt 0:00:05]} 26. Qd2 {[%emt 0:00:03]} Rad8 {[%emt 0:02:59]} 27. exd5 {[%emt 0:01:36]} exd5 {[%emt 0:00:09]} 28. Rxe8+ {[%emt 0:00:52]} Qxe8 {[%emt 0:02:27]} 29. b4 {[%emt 0:00:29]} Be7 {[%emt 0:01:43]} 30. Bc7 {[%emt 0:01:24]} Rc8 {[%emt 0:00:18]} 31. Bxb6 {[%emt 0:00:23]} axb4 {[%emt 0:00:05]} 32. axb4 {[%emt 0:00:06]} ({Viel schwächer wäre} 32. Qxd5 $6 Qc6 (32... Rxc3 33. Qe4 $16) (32... bxc3 $2 33. Re1 $18) 33. Qxc6 Rxc6 $11) 32... Bxh4 {[%emt 0:02:11]} (32... Qc6 $142 33. Bd4 Bxh4) 33. Bf5 $1 $16 {[%emt 0:00:55]} ({Auf keinen Fall} 33. Qxd5 $6 Rxc3 34. Bf5 Bb5 $14) 33... Bg5 {[%emt 0:02:31]} 34. Qe1 {[%emt 0:03:50]} (34. f4 $18 {und Weiss behält klar die Oberhand.} Bd8 35. Bc5) 34... Qxe1+ {[%emt 0:02:16]} 35. Rxe1 {[%emt 0:00:01]} Rb8 {[%emt 0:00:08]} (35... Rf8 $16 {war nötig.}) 36. Bc7 $1 $18 {[%emt 0:00:40]} Rf8 {[%emt 0:00:31] [#]} 37. Bd6 $2 {[%emt 0:02:14]} (37. Ra1 $1 $18 {[%cal Ra1a6]} Bc8 38. Bd3) 37... Rd8 $11 {[%emt 0:00:06]} 38. Bc7 $2 {[%emt 0:00:01]} (38. Bg3 $11) 38... Rf8 $1 $18 {[%emt 0:00:01] [#]} 39. Bd7 {[%emt 0:01:50]} (39. Ra1 $1 $18 {[%cal Ra1a6]} Bc8 40. Bd3) 39... Bd2 $14 {[%emt 0:02:09]} 40. Ra1 {[%emt 0:00:36]} Bc8 $1 {[%emt 0:00:50]} 41. Bxc8 {[%emt 0:00:37]} Rxc8 {[%emt 0:00:02]} 42. Be5 {[%emt 0:00:02]} f6 $1 {[%emt 0:00:38]} 43. Bd4 {[%emt 0:00:15]} Bf4 $1 {[%emt 0:01:33]} (43... Bxc3 $2 {ist das falsche Schlagen.} 44. Rc1 Bxd4 45. Rxc8+ Kf7 46. Rc7+ Ke6 47. Rxg7 $18) 44. Ra3 {[%emt 0:01:03]} Be5 {[%emt 0:00:25]} 45. Bc5 {[%emt 0:01:56]} 1/2-1/2

[Event "1st Bangalore GM-Open-A 2024"]
[Site "Bangalore"]
[Date "2024.01.25"]
[Round "9.4"]
[White "Nithin Babu"]
[Black "Ghosh, Diptayan"]
[Result "0-1"]
[ECO "B12"]
[WhiteElo "2177"]
[BlackElo "2568"]
[Annotator "TA"]
[PlyCount "82"]
[EventDate "2024.01.20"]
[EventType "swiss"]
[EventCountry "IND"]
[SourceTitle "playchess.com"]
[Source "ChessBase"]
[SourceQuality "1"]
[TimeControl "5400+30"]

{[%evp 12,82,0,14,19,0,0,9,14,-50,0,-55,-54,-114,-78,-88,-50,-56,-54,-87,-67,-199,-118,-178,-147,-354,-377,-378,-396,-414,-400,-389,-403,-413,-406,-472,-454,-495,-515,-622,-646,-649,-619,-651,-646,-639,-576,-803,-644,-647,-649,-705,-703,-767,-747,-937,-845,-1268,-1297,-1250,-1125,-5285,-5006,-29988,-29982,-29982,-29983,-29989,-29989,-29989,-29990,-29992,-29991]} 1. e4 {[%emt 0:05:07]} c6 {[%emt 0:00:25]} 2. d4 {[%emt 0:00:08]} d5 {[%emt 0:00:05]} 3. e5 {[%emt 0:00:04]} Bf5 {[%emt 0:00:22]} 4. h4 {[%emt 0:00:13]} h6 {[%emt 0:04:27]} 5. g4 {[%emt 0:03:08]} Be4 {[%emt 0:00:21]} 6. f3 {[%emt 0:00:47]} Bh7 {[%emt 0:00:04]} 7. e6 {[%emt 0:03:40]} Nf6 {[%emt 0:00:05]} 8. Bd3 {[%emt 0:05:50]} Qd6 {[%emt 0:00:07]} 9. exf7+ {[%emt 0:01:07]} Kxf7 {[%emt 0:01:06] Die Stellung ist ausgeglichen.} 10. f4 {[%emt 0:03:26]} ({Günstiger ist} 10. Bxh7 $11 Rxh7 11. Be3) 10... Bxd3 {[%emt 0:07:52]} ({Besser ist} 10... Qe6+ $1 $15 11. Qe2 Qxg4) 11. cxd3 {[%emt 0:03:02]} (11. Qxd3 $11 Qe6+ (11... Nxg4 12. Qf5+ Nf6 13. Nf3 $11) 12. Ne2) 11... Qe6+ $15 {[%emt 0:01:14]} 12. Kd2 {[%emt 0:16:33]} (12. Qe2 $15) 12... Qxg4 {[%emt 0:10:44] Schwarz steht aktiver.} (12... Nxg4 {ist interessant.} 13. Qe2 Qf5 14. Nf3 e6) 13. Nf3 {[%emt 0:00:50] Ne5+ ist eine echte Drohung.} Nbd7 {[%emt 0:01:54]} 14. Kc2 {[%emt 0:02:00]} e6 $36 {[%emt 0:05:31][%mdl 2048] Schwarz kämpft um Vorteil.} 15. h5 {[%emt 0:07:46] Schwarz führt seinen Vorteil zum Gewinn.} c5 {[%emt 0:04:15]} (15... Nxh5 $2 16. Ng5+ $18) 16. Be3 {[%emt 0:07:39]} (16. Qe2 $15) 16... cxd4 {[%emt 0:05:34]} (16... Nxh5 $2 17. Ng5+ hxg5 18. Qxg4 $18) (16... Qg2+ $19 17. Kc1 cxd4 18. Bxd4 Bd6) 17. Bxd4 {[%emt 0:03:47]} (17. Nxd4 $17 {ist eine bessere Verteidigung.} Qxd1+ 18. Kxd1) 17... Qxf4 $19 {[%emt 0:03:43] Und jetzt ...e5 wäre schön.} (17... Nxh5 $2 18. Ng5+ hxg5 19. Qxg4 $18) 18. Nc3 $2 {[%emt 0:05:07]} (18. Qe2 $17) 18... e5 {[%emt 0:07:08]} 19. Bg1 {[%emt 0:05:12]} d4 {[%emt 0:07:46]} 20. Rh4 {[%emt 0:02:29]} Qf5 {[%emt 0:00:36]} 21. Ne4 {[%emt 0:00:58]} Nxe4 {[%emt 0:04:23]} (21... Nxh5 22. Nxd4 exd4 23. Rxh5 Rc8+ 24. Kb1 $11) 22. Rxe4 {[%emt 0:00:24]} Bd6 {[%emt 0:06:33] Droht ...Rac8+ und aus.} (22... Qxh5 $2 23. Nxe5+ Qxe5 24. Rxe5 Rc8+ 25. Kb3 Nxe5 26. Qh5+ (26. Bxd4 Ng6 $18) 26... Kg8 27. Qxe5 $18) 23. Kb1 {[%emt 0:02:12]} Nc5 {[%emt 0:02:28]} (23... Qxh5 24. Nxe5+ Qxe5 25. Qb3+ Kf8 26. Rxe5 Nxe5 27. Bxd4 $18) 24. Nd2 {[%emt 0:06:07]} Rhf8 {[%emt 0:01:50][%cal Of7g8]} 25. b4 {[%emt 0:01:51]} Nxe4 {[%emt 0:00:46]} 26. Nxe4 {[%emt 0:00:06]} Be7 {[%emt 0:00:39]} 27. Kb2 {[%emt 0:00:10]} Kg8 {[%emt 0:00:28]} (27... Bxb4 28. Qb3+ Ke8 29. Qa4+ (29. Qxb4 Qxh5 30. Nd6+ Kd7 $11) 29... Kf7 30. Qb3+ Ke8 31. Qxb4 $11) 28. Bh2 {[%emt 0:00:45]} Qe6 {[%emt 0:00:46]} 29. Qd2 {[%emt 0:00:34]} Rf5 {[%emt 0:02:28]} 30. Rg1 {[%emt 0:01:04]} Rxh5 {[%emt 0:01:27][%cal Oe7b4]} 31. Qe2 {[%emt 0:01:31]} Qf7 {[%emt 0:01:43]} 32. Kb1 {[%emt 0:02:06]} Rf8 {[%emt 0:01:19]} ({Nicht} 32... Bxb4 33. Qxh5 Qxh5 34. Nf6+ Kf7 35. Nxh5 $11) 33. Qg2 {[%emt 0:01:21]} Rf5 {[%emt 0:00:33]} 34. Kb2 {[%emt 0:00:36]} Bxb4 {[%emt 0:00:56]} 35. Bg3 {[%emt 0:00:44] [#]} Bc3+ $1 {[%emt 0:00:27]} 36. Nxc3 {[%emt 0:00:59]} (36. Kb1 Rf1+) 36... dxc3+ {[%emt 0:00:02]} 37. Ka3 {[%emt 0:00:13]} Qe7+ {[%emt 0:00:22] Schwarz setzt Matt.} 38. Kb3 {[%emt 0:00:07]} Qe6+ {[%emt 0:00:04]} 39. Ka3 {[%emt 0:00:16]} Qa6+ {[%emt 0:00:15]} 40. Kb4 {[%emt 0:00:18]} Qb6+ {[%emt 0:00:26]} 41. Ka4 {[%emt 0:00:31] [#]} Rf4+ $1 {[%emt 0:00:26] Gewichteter Fehlerwert: Weiß=0.54/Schwarz=0.17 (sehr präzise) .  Verlustzug:     	Weiß=1     	---        Fehler:       	Weiß=5     	Schwarz=2     Ungenau:       	Weiß=1     	Schwarz=2     OK:         	Weiß=2     	Schwarz=11    Bester:       	Weiß=1     	Schwarz=2} 0-1